Cogmind - Beta 14 @@@ ROGUE MODE // 2024.08.07 @ 20:28:28 Player: FauxMaasks Result: Destroyed by Y9-7Y5(R) with Subdweller Machine Gun Performance ------------- Evolutions (0) 0 Regions Visited (2) 400 Robots Destroyed (22) 110 Value Destroyed (534) 534 Prototype IDs (4) 80 Alien Tech Used (0) 0 Bonus (0) 0 TOTAL SCORE: 1124 Bonus ------- None Cogmind --------- Core Integrity 0/250 Matter 277/300 Energy 228/250 System Corruption 0% Temperature Cool (0) Movement Rolling (130) Ox2 Location -10/Subcaves Parts ------- > --- POWER (1) -------- Ion Engine > --- PROPULSION (2) --- Light Treads Subdweller Monowheel > --- UTILITY (2) ------ High-capacity Storage Unit Seismic Detector > --- WEAPON (2) ------- Medium Laser Subdweller Machine Gun > --- INVENTORY (20) --- Ion Engine Light Treads Wheel Wheel Wheel Heat Sink Improved Heat Sink High-capacity Storage Unit Improved Terrain Scanner Targeting Computer ECM Suite Medium Armor Plating Hardened Light Armor Plating Hardened Light Armor Plating Medium Laser Small Laser Subdweller Laser Scrap Shield Fragment (49) Peak State ------------ > --- POWER ------------ Light Nuclear Core > --- PROPULSION ------- Wheel Compact Wheel > --- UTILITY ---------- High-capacity Storage Unit Medium Armor Plating > --- WEAPON ----------- Particle Gun Assault Rifle > --- INVENTORY -------- Ion Engine Light Treads Light Treads Wheel Heat Sink Improved Heat Sink High-capacity Storage Unit Improved Terrain Scanner Seismic Detector Targeting Computer ECM Suite Hardened Light Armor Plating Hardened Light Armor Plating Medium Laser Small Laser Small Laser [Rating: 13] Favorites ----------- Power Ion Engine Engine Ion Engine Power Core Light Nuclear Core Propulsion Wheel Treads Light Treads Wheel Wheel Utility High-capacity Storage Unit Device Seismic Detector Storage High-capacity Storage Unit Protection Medium Armor Plating Weapon Assault Rifle Energy Gun Small Laser Ballistic Gun Assault Rifle Build | -11 -10 -10 ------- Run | Yrd Mat Sub Slots Evolved . | . . . Power . | . . . Propulsion . | . . . Utility . | . . . Weapon . | . . . Parts Attached 19 | 6 8 5 Power 3 | 1 2 . Engine 2 | 1 1 . Core 1 | . 1 . Reactor . | . . . Propulsion 4 | 2 . 2 Treads 1 | . . 1 Leg . | . . . Wheel 3 | 2 . 1 Hover . | . . . Flight . | . . . Utility 5 | 2 2 1 Device 2 | 1 . 1 Storage 2 | 1 1 . Processor . | . . . Hackware . | . . . Protection 1 | . 1 . Artifact . | . . . Weapon 7 | 1 4 2 Energy Gun 4 | 1 2 1 Energy Cannon . | . . . Ballistic Gun 3 | . 2 1 Ballistic Cannon . | . . . Launcher . | . . . Special Weapon . | . . . Impact Weapon . | . . . Slashing Weapon . | . . . Piercing Weapon . | . . . Special Melee Weapon . | . . . Unidentified Prototypes . | . . . Parts Lost 4 | . 1 3 Power . | . . . Propulsion 1 | . . 1 Utility . | . . . Weapon 3 | . 1 2 Highest Loss Streak 1 | . 1 1 To Critical Strikes . | . . . Average Slot Usage (%) 98 | . 98 99 Engine 10 | . 9 14 Core 3 | . 4 . Treads 2 | . . 9 Wheel 25 | . 28 18 Device 8 | . 6 12 Storage 14 | . 14 14 Protection 5 | . 7 1 Energy Gun 12 | . 12 14 Ballistic Gun 13 | . 13 13 Peak Build Rating 13 | 6 13 11 Average Rating 9 | 4 9 10 On Entrance 5 | . 6 10 Naked Turns . | . . . Heaviest Build 57 | 11 57 55 Greatest Support 26 | 26 26 26 Greatest Overweight (x) 5 | . 2 5 Average Overweight (x) 1 | . 1 1 Largest Inventory Capacity 20 | 8 20 20 Average Capacity 19 | 7 19 20 Most Carried 19 | 5 18 19 Average Carried 12 | 3 12 18 Final Capacity 20 | 8 20 20 Final Carried 18 | 5 17 18 Class Distribution -------------------- 88% | Mutant 11% | Scavenger-Mutant Dominant Class ---------------- Mutant | -10/Materials Scavenger-Mutant | -10/Subcaves Resources | -11 -10 -10 ----------- Run | Yrd Mat Sub Matter Collected 449 | 260 121 68 Remotely . | . . . Salvage Created 775 | 186 478 111 Parts 45 | 11 27 7 Haulers Intercepted 1 | . 1 . Recyclers Shooed . | . . . Parts Field Recycled . | . . . Retrieved Matter . | . . . Parts Self-Destructed . | . . . Prevented . | . . . Kills | -11 -10 -10 ------- Run | Yrd Mat Sub Combat Hostiles Destroyed 15 | . 12 3 Guns 15 | . 12 3 Classes Destroyed 7 | 2 4 1 Tunneler 4 | 4 . . Hauler 1 | . 1 . Recycler 1 | 1 . . Watcher 1 | . 1 . Swarmer 3 | . 3 . Grunt 9 | . 9 . Subdweller 3 | . . 3 Best Kill Streak 6 | 4 6 2 Combat Bots Only 6 | . 6 2 Max Kills in Single Turn 1 | 1 1 1 Gunslinging . | . . . Exploded . | . . . Melee . | . . . Uniques/NPCs Destroyed . | . . . Combat | -11 -10 -10 -------- Run | Yrd Mat Sub Hostile Shots Fired 86 | . 49 37 Missed 24 | . 13 11 Damage Taken 994 | . 456 538 Core 267 | . 100 167 Absorbed by Shields . | . . . Core Remaining (%) 100 | 100 . . Volleys Fired 78 | 17 38 23 Largest 2 | 1 2 2 Hottest 85 | 50 85 80 Shots Fired 133 | 17 75 41 Gun 133 | 17 75 41 Cannon . | . . . Launcher . | . . . Special . | . . . Kinetic 61 | . 38 23 Thermal 72 | 17 37 18 Explosive . | . . . Electromagnetic . | . . . Robot Hit Streak 13 | 6 13 10 Robot Miss Streak 3 | 1 3 3 Penetration Max . | . . . Secondary Targets 1 | . 1 . Max Gunslinging Chain 1 | . 1 . Shots Hit Robots 97 | 15 50 32 Core Hits 37 | 6 23 8 Critical Kills . | . . . Critical Parts Destroyed . | . . . Critical Strikes 3 | 1 2 . Burn 3 | 1 2 . Melee Attacks . | . . . Impact . | . . . Slashing . | . . . Piercing . | . . . Sneak Attacks . | . . . Combat Hostiles . | . . . Follow-up Attacks . | . . . Damage Inflicted 1257 | 186 586 485 Guns 1257 | 186 586 485 Cannons . | . . . Explosions . | . . . Melee . | . . . Ramming . | . . . Kinetic 563 | . 207 356 Thermal 694 | 186 379 129 Explosive . | . . . Electromagnetic . | . . . Impact . | . . . Slashing . | . . . Piercing . | . . . Highest Corruption . | . . . Average Corruption . | . . . Corruption Purged . | . . . Corruption Blocked . | . . . Overload Shots . | . . . Overflow Damage . | . . . Projectiles . | . . . Explosions . | . . . Melee . | . . . Knockbacks . | . . . Impact . | . . . Kinetic . | . . . Secondary . | . . . Self-Inflicted Damage . | . . . Shots . | . . . Rammed . | . . . Targets Rammed . | . . . Kicked . | . . . Crushed . | . . . Highest Temperature 505 | 80 505 . Average Temperature 121 | 37 141 . Received Heat Transfer 300 | . 264 36 Effects 8 | . 8 . Shutdowns 2 | . 2 . Energy Bleed 1 | . 1 . Interference 1 | . 1 . Damage (major) 4 | . 4 . Siege Activations . | . . . Robots Corrupted . | . . . Combat Hostiles . | . . . Parts Fried . | . . . Impact Corruptions . | . . . Robots Melted . | . . . Combat Hostiles . | . . . Parts Melted 7 | 2 5 . Heat Transferred 2076 | 629 1135 312 Parts Sabotaged . | . . . Parts Stolen . | . . . Parts Stripped . | . . . Power Chain Reactions . | . . . Alert | -11 -10 -10 ------- Run | Yrd Mat Sub Peak Influence 188 | 25 188 . Initial 16 | . 16 . Average 52 | 9 56 . Maximum Alert Level . | . . . Low Security (%) 100 | 100 100 . Level 1 . | . . . Level 2 . | . . . Level 3 . | . . . Level 4 . | . . . Level 5 . | . . . High Security . | . . . Max Security . | . . . Squads Dispatched 2 | . 2 . Investigation 2 | . 2 . Extermination . | . . . Reinforcement . | . . . Assault . | . . . Garrison . | . . . Intercept . | . . . Searches Triggered . | . . . Construction Impeded . | . . . Haulers Reinforced . | . . . Active Scanning Responses . | . . . Cargo Convoy Interrupts . | . . . Stealth | -11 -10 -10 --------- Run | Yrd Mat Sub Distress Signals 1 | . 1 . Communications Jammed . | . . . Distress Signals . | . . . Times Spotted 23 | . 19 4 Peak Tracking Total 4 | . 4 2 Tactical Retreats 2 | . 2 . Traps | -11 -10 -10 ------- Run | Yrd Mat Sub Traps Triggered 2 | . 2 . Indirectly . | . . . Trap Hack Attempts . | . . . Triggered . | . . . Disarmed . | . . . Reprogrammed . | . . . Reused . | . . . Traps Extracted . | . . . Installed . | . . . Triggered . | . . . Machines | -11 -10 -10 ---------- Run | Yrd Mat Sub Machines Disabled . | . . . Max in Single Turn . | . . . Machines Repaired . | . . . Machines Dismantled . | . . . Machines Sabotaged . | . . . Overloaded Fab Kills . | . . . Hacking | -11 -10 -10 --------- Run | Yrd Mat Sub Machines Accessed 8 | . 8 . Terminals 8 | . 8 . Fabricators . | . . . Repair Stations . | . . . Recycling Units . | . . . Scanalyzers . | . . . Garrison Access . | . . . Total Hacks 25 | . 25 . Successful 11 | . 11 . Failed 14 | . 14 . Catastrophic 2 | . 2 . Database Lockouts . | . . . Manual 14 | . 14 . Terminals 25 | . 25 . Fabricators . | . . . Repair Stations . | . . . Recycling Units . | . . . Scanalyzers . | . . . Garrison Access . | . . . Terminal Hacks 9 | . 9 . Robot Analysis 3 | . 3 . Prototype ID Bank 3 | . 3 . Alert Level 1 | . 1 . Unreport Threat 1 | . 1 . Locate Traps 1 | . 1 . Fabricator Hacks . | . . . Repair Station Hacks . | . . . Recycling Unit Hacks . | . . . Scanalyzer . | . . . Garrison Access Hacks . | . . . Unauthorized Hacks 2 | . 2 . Terminals 2 | . 2 . Botnet 2 | . 2 . Fabricators . | . . . Repair Stations . | . . . Recycling Units . | . . . Scanalyzers . | . . . Garrison Access . | . . . Data Cores Recovered . | . . . Used . | . . . Hacking Detections 7 | . 7 . Full Trace Events . | . . . Feedback Events . | . . . Feedback Blocked . | . . . Robot Schematics Acquired . | . . . Robots Built . | . . . Authchips . | . . . Time . | . . . Total Robot Build Rating . | . . . Part Schematics Acquired . | . . . Parts Built . | . . . Authchips . | . . . Time . | . . . Total Part Build Rating . | . . . Parts Repaired . | . . . Time . | . . . Parts Recycled . | . . . Recycled Matter . | . . . Retrieved Matter . | . . . Retrieved Components . | . . . Parts Scanalyzed . | . . . Part Schematics Acquired . | . . . Parts Damaged . | . . . Bothacking | -11 -10 -10 ------------ Run | Yrd Mat Sub Used RIF Installer . | . . . Robots Hacked . | . . . Non-combat . | . . . Combat . | . . . Robot Hacks Applied . | . . . Relay Couplers Released . | . . . Fabnet Peak Effective % . | . . . Robots Rewired . | . . . Allies Hacked . | . . . Hacks Repelled . | . . . Allies | -11 -10 -10 -------- Run | Yrd Mat Sub Total Allies . | . . . Largest Group . | . . . Highest-Rated Group . | . . . Highest-Rated Ally . | . . . Total Orders . | . . . Ally Attacks . | . . . Total Damage . | . . . Kills . | . . . Allies Corrupted . | . . . Allies Melted . | . . . Intel | -11 -10 -10 ------- Run | Yrd Mat Sub Robot Analysis Total 3 | . 3 . Derelict Logs Recovered . | . . . Drone Launches . | . . . Drone Recoveries . | . . . Exploration | -11 -10 -10 ------------- Run | Yrd Mat Sub Turns Passed 1744 | 116 1252 376 Spaces Moved 1024 | 71 729 224 Core 2 | 2 . . Treads . | . . . Legs . | . . . Wheels 1022 | 69 729 224 Hover . | . . . Flight . | . . . Fastest Speed 50 | 50 90 105 Average Speed 112 | 88 111 122 Slowest Speed 155 | 90 120 155 Overloaded Moves . | . . . Propulsion Burnouts . | . . . Robots Hopped . | . . . Cave-ins Triggered . | . . . Exploration Rate (%) 39 | 5 97 16 Regions Visited 2 Branch Regions 1 Pre-discovered Areas . | . . . Known Exits Taken . | . . . Unknown Exits Taken 2 | 1 1 . Scrap Searched . | . . . Spaces Dug . | . . . Terrain Destroyed . | . . . Melee . | . . . Projectile . | . . . AOE . | . . . Terrain Rammed . | . . . Walls Destroyed . | . . . Machines Disabled . | . . . Actions | -11 -10 -10 --------- Run | Yrd Mat Sub Total 1492 | 104 1103 285 Wait 341 | 5 306 30 Move 1022 | 70 728 224 Hop . | . . . Pick Up 25 | 6 16 3 Fast Attach 6 | 5 1 . Attach 7 | 1 3 3 Detach 2 | . 2 . Swap 6 | . 4 2 Drop 5 | . 5 . Fire 78 | 17 38 23 Melee . | . . . Ram . | . . . Kick . | . . . Crush . | . . . Escape Stasis . | . . . Rewire . | . . . Trap . | . . . Miscellaneous . | . . . Route ------- -11/Scrapyard -10/Materials (discovered 5 exits: [*Mat x3] / [*Min] / [*Sub]) -10/Subcaves History --------- Turn | Location | Event 17 | -11/Scrapyard | Discovered new exit (range 16) 117 | -11/Scrapyard | Entered Materials 308 | -10/Materials | Build established: Mutant 527 | -10/Materials | Discovered new exit (range 13) 645 | -10/Materials | Discovered new exit (range 8) 689 | -10/Materials | Discovered new exit (range 9) 902 | -10/Materials | Discovered new exit (range 16) 1343 | -10/Materials | Discovered new exit (range 6) 1369 | -10/Materials | Entered Subcaves 1486 | -10/Subcaves | Core integrity fell below 50% 1559 | -10/Subcaves | Core integrity fell below 20% 1745 | -10/Subcaves | Destroyed by Y9-7Y5(R) with Subdweller Machine Gun Last Messages --------------- 01346_ U-05 Engineer lays Concrete. LOCATION=UNKNOWN AMBIENT_HEAT=-10 GOAL=ESCAPE 01370_ D9-9A8(u) builds Twisted Machinery. 01479_ Com. Wheel destroyed. 01485_ 6W-NPQ(R) destroyed. 01491_ Acquired 30 matter. 01494_ Acquired Sub. Machine Gun. 01495_ Subatomizers dissect the Sub. Power Source. 01497_ Acquired Scrap Shield Fragment. 01533_ Subatomizers dissect the Sub. Power Source. 01547_ Assault Rifle destroyed. 01551_ I2-IJ7(R) destroyed. 01557_ Subatomizers dissect the Sub. Power Source. 01560_ 48-V66(R) destroyed. 01567_ Subatomizers dissect the Sub. Power Source. 01567_ Acquired 38 matter. 01570_ Acquired Sub. Laser. 01741_ Sml. Laser destroyed. Map ----- +----------------------------------------------------+ | ??????????????## & ##### #?????????? | | ???????????????## %&& #### #?????????? | | ????????????????## * ## ####?????????? | | ?????????????????###### ####????????????? | | ??????????????????????# ###*& #?#####?????????? | | ??????????????????????# #?##%& ### ##????????? | | ??????????????????????# #??# ! #????????? | | ??????????????## #??## ##### ##????????? | | ?????????????## """#?# ## ##?????????? | | ????????????## " "## ##?????????? | | ????????????# " "" # # ##### ##????????? | | ??????????? " " ####???## #????????? | | ?????????? """ " #??????# #????????? | | ???????????? "" #?????## #????????? | | ????????????"" "" #?????# #????????? | | ???????????? " ## "" ##????## ##????????? | | ????????????" ??# "" #?????## #?????????? | | ???????????????""""" #??????# #?????????? | | ????????????????""##"" #??????## ##?????????? | | ???????????????? ??#" #???????####??????????? | | ???????????????????#" ##????????????????????? | | ???????????????????#" #????????????????????? | | ???????????????????##" #????????????????????? | | ????????????????????# ## #????????????????????? | | ????????????????????## R####????????????????????? | | ?????????????????????# @###????????????????????? | | ?????????????????????# ##???????????????????? | | ??????????????????##?# ##??????????????????? | | ?????????????????##"## #######????????????? | | ??????????????####""" #????????????? | | ??????????????#" ##????????????? | | ??????????????#" #?????????????? | | ??????????????## ##????????????? | | ???????????????### #????????????? | | ?????????????????# #### ## #????????????? | | ?????????????????#####??## #?######????????????? | | ????????# ????##?????????# ####????????????????? | | ????????? #### ###?###?## ##???????????????? | | ??????????? ## ### #???????????????? | | ????????????? ## #???????????????? | | ??????????????# ## ##???????????????? | | ???????????????# #?# ##????????????????? | | ???????????????# #?## ##?????????????????? | | ???????????????# ##?#### #??????????????????? | | ???????????????## ### ## ##??????????????????? | | ????????????????## #??????????????????? | | ?????????????????# ##??????????????????? | | ?????????????????## ## #???????????????????? | | ??????????????????############???????????????????? | | ?????????????????????????????????????????????????? | +----------------------------------------------------+ Best States ------------- Heat Dissipation 25 Energy Generation 14 Energy Capacity 250 Matter Stores 300 Matter Capacity 300 Sight Range 16 Terrain Scan Density 10 Armor Coverage 225 Evasion (%) 42 Item Schematics ----------------- None Robot Schematics ------------------ None Fabricated ------------ Nothing Alien Tech Used ----------------- None Achievements -------------- None Challenges ------------ None Game ------ Seed ForceTechObliterator Manual? 0 Play Time 00:23:12 Cumulative 122.3 hours Start 2024.08.07 @ 20:06:58 End 2024.08.07 @ 20:28:28 Sessions 1 Manual Loads 0 Difficulty Rogue Special Mode None Game No. 32 Rogue 13 Adventurer 17 Explorer 2 Win Type - Total 3 Types 2/0/1/0/0/0/0/0/0 Lore% 31 Gallery% 56 Achievement% 57 Wizard Run 0 Options --------- Layout 2 ASCII 0 Keyboard 1 Movement Vi Keybinds 0 Fullscreen 0 Font 20/SmallcapsGlow Map View 64x51 Zoom Use 0% Tactical HUD 1 Map Filters NONE Filters NONE Steam 1 RUN: 8079b230-be1e-4064-a436-9661f0c51edb